[Event "Polish University-ch Open 2024"]
[Site "Lublin"]
[Date "2024.02.24"]
[Round "8.6"]
[White "Golenia, Wojciech"]
[Black "Niedbala, Bartlomiej"]
[Result "0-1"]
[ECO "A22"]
[WhiteElo "2212"]
[BlackElo "2382"]
[Annotator "TA"]
[PlyCount "74"]
[EventDate "2024.02.22"]
[EventType "swiss"]
[EventCountry "POL"]
[SourceTitle "playchess.com"]
[Source "ChessBase"]
[SourceQuality "1"]
[TimeControl "600+3"]

{[%evp 13,73,-1,1,0,0,0,7,-10,-13,-28,-27,-79,-78,-71,-57,-97,-61,-51,-66,-70,-23,-196,-188,-425,-95,-627,-632,-643,-643,-614,-356,-473,-450,-458,-457,-1200,-1184,-1270,-1178,-1111,-1041,-1178,-1178,-1172,-1101,-1825,-1188,-5214,-5198,-29998,-29991,-29991,-29992,-29992,-29993,-29994,-29995,-29995,-29996,-29998,-29999,-29999]} 1. c4 {[%emt 0:00:01]} Nf6 {[%emt 0:00:07]} 2. Nc3 {[%emt 0:00:02]} e5 {[%emt 0:00:04]} 3. g3 {[%emt 0:00:01]} Bb4 {[%emt 0:00:02]} 4. Bg2 {[%emt 0:00:02]} Bxc3 {[%emt 0:00:06]} 5. bxc3 {[%emt 0:00:02]} O-O {[%emt 0:00:02]} 6. e4 {[%emt 0:00:02]} c6 {[%emt 0:00:12]} 7. Ne2 {[%emt 0:01:00]} d5 {[%emt 0:00:02]} 8. cxd5 {[%emt 0:00:23]} cxd5 {[%emt 0:00:01]} 9. exd5 {[%emt 0:00:11]} Nxd5 {[%emt 0:00:02]} 10. O-O {[%emt 0:00:46] The position is equal.} Nc6 {[%emt 0:00:01]} 11. h3 {[%emt 0:00:27]} Re8 {[%emt 0:00:15]} 12. Re1 {[%emt 0:00:47]} (12. Rb1 $11) 12... Bf5 $17 {[%emt 0:00:41]} 13. Bb2 {[%emt 0:01:17]} Qd7 {[%emt 0:00:53]} 14. Kh2 {[%emt 0:00:01]} Nb6 {[%emt 0:00:24]} 15. d4 {[%emt 0:00:29]} Nc4 {[%emt 0:00:40] Prevents Ba3} 16. Bc1 {[%emt 0:00:27]} exd4 {[%emt 0:00:56] Black has more active pieces. The white rooks are passive.} (16... Rad8 $15) 17. cxd4 $2 {[%emt 0:00:31] [#] Black converts the advantage convincingly.} (17. Nxd4 $11 {and White stays safe.} Rxe1 18. Qxe1) 17... Nb4 $1 $19 {[%emt 0:01:18] And now ...Bc2 would win.} 18. Rh1 $2 {[%emt 0:02:26]} (18. Rf1) 18... Rac8 $2 {[%emt 0:01:08]} (18... Bc2 $19 19. Qe1 Nd3) 19. g4 $2 {[%emt 0:00:44][%mdl 8192]} (19. Nf4 $17) 19... Bc2 {[%emt 0:00:17]} 20. Qe1 {[%emt 0:00:24]} Nd3 {[%emt 0:00:17]} 21. Qf1 {[%emt 0:00:00]} Qc7+ {[%emt 0:01:05]} 22. Kg1 {[%emt 0:00:26]} Re7 {[%emt 0:00:38]} 23. Bg5 {[%emt 0:00:28]} f6 {[%emt 0:00:00]} 24. Bh4 {[%emt 0:00:01]} (24. Be3 $142 Nxe3 25. fxe3 Rxe3 26. g5) 24... Nd2 {[%emt 0:00:01] Excellent horsemanship.} 25. Bd5+ {[%emt 0:00:11]} Kh8 {[%emt 0:00:05]} 26. Qg2 {[%emt 0:00:06]} Rxe2 {[%emt 0:00:03]} 27. Bg3 {[%emt 0:00:01] Wards off Qf4} Qc3 {[%emt 0:00:17][%csl LRa1,LRd4]} 28. Kh2 {[%emt 0:00:01]} Qxd4 {[%emt 0:00:07]} 29. Bxb7 {[%emt 0:00:01]} Rce8 {[%emt 0:00:00][%cal Od3f4] [#] Strongly threatening ...Nf4!} 30. Bc6 {[%emt 0:00:01]} Nxf2 {[%emt 0:00:26]} 31. Bxe8 {[%emt 0:00:08]} Nxg4+ {[%emt 0:00:02] Black mates.} 32. hxg4 {[%emt 0:00:05]} Nf3+ {[%emt 0:00:07]} 33. Kh3 {[%emt 0:00:03]} Ng5+ {[%emt 0:00:07]} 34. Kh2 {[%emt 0:00:03]} Rxg2+ {[%emt 0:00:01]} 35. Kxg2 {[%emt 0:00:03]} Be4+ {[%emt 0:00:14]} 36. Kh2 {[%emt 0:00:02]} Qd2+ {[%emt 0:00:03]} 37. Kg1 {[%emt 0:00:01]} Qg2# {[%emt 0:00:01] Weighted Error Value: White=1.20/Black=0.41.  Loses game:     	White=2     	---        Missed win:     	---       	Black=1      Mistake:       	White=3     	Black=1      Inaccurate:     	White=1     	Black=1      OK:         	White=3     	Black=4      Best:        	---       	Black=4      Strong:       	---       	Black=1} 0-1

[Event "Polish University-ch Open 2024"]
[Site "Lublin"]
[Date "2024.02.24"]
[Round "8.7"]
[White "Kowalski, Igor"]
[Black "Fiedorek, Michal"]
[Result "1-0"]
[ECO "D30"]
[WhiteElo "2372"]
[BlackElo "2286"]
[Annotator "TA"]
[PlyCount "69"]
[EventDate "2024.02.22"]
[EventType "swiss"]
[EventCountry "POL"]
[SourceTitle "playchess.com"]
[Source "ChessBase"]
[SourceQuality "1"]
[TimeControl "600+3"]

{[%evp 17,69,23,14,6,11,0,27,10,0,9,13,14,47,41,43,43,48,48,45,62,82,74,93,45,107,67,82,67,78,83,104,67,93,88,135,107,197,194,143,160,305,300,419,362,565,358,381,328,1356,1342,29990,29991,29993,29994]} 1. d4 {[%emt 0:00:01]} d5 {[%emt 0:00:01]} 2. c4 {[%emt 0:00:02]} e6 {[%emt 0:00:02]} 3. Nf3 {[%emt 0:00:02]} Nf6 {[%emt 0:00:01]} 4. g3 {[%emt 0:00:04]} Be7 {[%emt 0:00:06]} 5. Bg2 {[%emt 0:00:01]} O-O {[%emt 0:00:02]} 6. O-O {[%emt 0:00:02]} c6 {[%emt 0:00:02]} 7. Qd3 {[%emt 0:00:10]} dxc4 {[%emt 0:00:04]} 8. Qxc4 {[%emt 0:00:02]} b5 {[%emt 0:00:03]} 9. Qc2 {[%emt 0:00:04]} Bb7 {[%emt 0:00:02]} 10. Rd1 {[%emt 0:00:21]} Nbd7 {[%emt 0:00:05]} 11. a4 {[%emt 0:00:11]} a5 {[%emt 0:02:17]} 12. Ne5 {[%emt 0:00:10] White has an edge.} Nxe5 {[%emt 0:00:15]} 13. dxe5 {[%emt 0:00:01]} Nd5 {[%emt 0:00:01][%cal Bf6d5,Bd5b6,Bb6d7][%mdl 32]} 14. Nc3 {[%emt 0:00:40]} b4 {[%emt 0:03:01]} 15. Ne4 {[%emt 0:00:24][%cal Oe4d6]} c5 {[%emt 0:00:07]} 16. Nd6 {[%emt 0:00:33] Dodges Rc8} Bxd6 {[%emt 0:01:05]} 17. exd6 {[%emt 0:00:01] Black must now prevent e4.} Rc8 {[%emt 0:00:01][%cal Of7f5]} (17... Qxd6 $2 18. e4 $18) 18. e4 {[%emt 0:01:20]} Nb6 {[%emt 0:00:04]} 19. Be3 {[%emt 0:00:55]} Qd7 {[%emt 0:00:44]} 20. b3 {[%emt 0:01:25]} (20. Bxc5 Qc6 21. Rac1 Nd7 $19 (21... Nxa4 $2 22. d7 $18)) ({White should play} 20. Bf1 $16) 20... Qc6 {[%emt 0:00:22]} ({Better is} 20... f5 $14) 21. Rac1 {[%emt 0:00:05] White is more active.} Nd7 {[%emt 0:00:03]} 22. f4 $36 {[%emt 0:00:08][%mdl 2048] White has good play.} Rfd8 {[%emt 0:00:42]} 23. Qf2 {[%emt 0:00:49]} Ba8 {[%emt 0:00:45]} 24. Rd2 {[%emt 0:00:45]} h6 {[%emt 0:00:41]} 25. h3 {[%emt 0:00:07]} Bb7 {[%emt 0:00:20]} (25... Qa6 $142) 26. g4 $16 {[%emt 0:00:13]} Ba8 {[%emt 0:00:18]} (26... Qa6 $16) 27. g5 {[%emt 0:01:14]} hxg5 {[%emt 0:00:03]} 28. fxg5 {[%emt 0:00:01]} Bb7 {[%emt 0:00:06]} (28... Rf8 $16 {was worth a try.} 29. Qf4 Qb7) 29. Qg3 $18 {[%emt 0:00:24]} Qa6 {[%emt 0:00:03]} 30. g6 {[%emt 0:00:03]} fxg6 {[%emt 0:00:02]} (30... f6 $142 31. Bf1 Qc6) 31. Qxg6 {[%emt 0:00:08][%cal Oe3h6] [#] Threatening mate with Bh6!} Nf8 {[%emt 0:00:00]} 32. Qg3 {[%emt 0:00:02] Strongly threatening d7.} Qa8 $2 {[%emt 0:00:04]} (32... c4 33. Bf1 Bxe4) 33. d7 {[%emt 0:00:29] White threatens Bh6 and mate.} Rxd7 {[%emt 0:00:04]} 34. Rxd7 {[%emt 0:00:01]} (34. Rxc5 $2 {is the wrong capture.} Rxc5 (34... Bxe4 $2 {too greedy.} 35. Rxd7 Nxd7 36. Bxe4 $18) (34... Rxd2 $2 35. Bxd2 Rxc5 36. Bh6 $19) 35. Rxd7 Nxd7 $19) 34... Nxd7 {[%emt 0:00:01]} 35. Bh6 {[%emt 0:00:01] Weighted Error Value: White=0.26 (precise) /Black=0.62.  Mistake:       	White=1     	Black=6      Inaccurate:     	White=3     	Black=5      OK:         	White=7     	Black=7      Best:        	White=2     	Black=2} 1-0

[Event "Polish University-ch Open 2024"]
[Site "Lublin"]
[Date "2024.02.24"]
[Round "8.8"]
[White "Walter, Szymon"]
[Black "Dalkowski, Rafal"]
[Result "1-0"]
[ECO "B12"]
[WhiteElo "2305"]
[BlackElo "2093"]
[Annotator "TA"]
[PlyCount "105"]
[EventDate "2024.02.22"]
[EventType "swiss"]
[EventCountry "POL"]
[SourceTitle "playchess.com"]
[Source "ChessBase"]
[SourceQuality "1"]
[TimeControl "600+3"]

{[%evp 11,105,31,27,5,0,5,0,0,0,2,8,0,22,14,23,0,0,0,0,0,44,42,56,12,64,58,66,88,69,62,130,120,175,193,238,250,232,213,301,285,307,274,278,266,410,350,348,310,281,306,348,341,337,342,363,367,363,363,429,436,514,509,657,619,655,553,482,427,1255,1245,1155,1190,1084,848,943,940,808,689,683,669,631,485,622,570,563,0,648,595,1042,945,1102,1077,5029,883,2054,1982]} 1. e4 {[%emt 0:00:02]} c6 {[%emt 0:00:01]} 2. d4 {[%emt 0:00:02]} d5 {[%emt 0:00:02]} 3. f3 {[%emt 0:00:03]} dxe4 {[%emt 0:00:03]} 4. fxe4 {[%emt 0:00:01]} e5 {[%emt 0:00:03]} 5. Nf3 {[%emt 0:00:03]} Bg4 {[%emt 0:00:02]} 6. Bc4 {[%emt 0:00:02]} Nd7 {[%emt 0:00:04]} 7. O-O {[%emt 0:00:04][%cal Oc4f7] [#] aiming for Bxf7+!} (7. dxe5 Bxf3 8. Qxf3 Nxe5 $17) 7... Ngf6 {[%emt 0:00:02]} 8. c3 {[%emt 0:00:06]} Bd6 {[%emt 0:00:09]} 9. Bg5 {[%emt 0:00:13] The position is equal.} O-O {[%emt 0:00:13]} 10. Nbd2 {[%emt 0:00:02]} b5 {[%emt 0:00:03]} 11. Bb3 {[%emt 0:00:12]} Qc7 {[%emt 0:00:03]} 12. Qe1 {[%emt 0:00:04]} Bh5 {[%emt 0:00:03]} 13. Qh4 {[%emt 0:01:03] dxe5 would now be deadly.} Bg6 $1 {[%emt 0:00:02]} 14. Rae1 {[%emt 0:00:02]} Rae8 {[%emt 0:00:02]} 15. dxe5 {[%emt 0:00:42]} Nxe5 {[%emt 0:00:35]} 16. Bxf6 {[%emt 0:01:36]} gxf6 {[%emt 0:00:03]} 17. Bc2 {[%emt 0:00:09]} Nd7 {[%emt 0:09:24]} (17... c5 $11) 18. Nd4 $14 {[%emt 0:00:37]} Bc5 {[%emt 0:00:00]} 19. N2f3 {[%emt 0:00:10]} Re5 {[%emt 0:00:00]} 20. Qg3 {[%emt 0:00:53]} (20. Nxe5 $2 fxe5 21. Qf2 exd4 22. cxd4 Bb6 $19) 20... Qb8 {[%emt 0:00:00] White leaves nothing to chance now.} 21. Kh1 {[%emt 0:00:20][%cal Od4c6,Bg1h1,Bh1g2,Bg2f2][%mdl 32]} (21. Nxe5 fxe5 22. Qe3 (22. b4 $2 Bb6 $19) 22... Bb6 $19 (22... exd4 $2 23. cxd4 Bb6 24. Kh1 $19)) 21... Rh5 {[%emt 0:00:00]} (21... Ree8 $16 {keeps fighting.}) 22. Qxb8 $18 {[%emt 0:00:19]} Nxb8 {[%emt 0:00:00] [#]} 23. g4 $1 {[%emt 0:00:06]} Rh6 {[%emt 0:00:00]} 24. Kg2 {[%emt 0:00:42]} Bd6 {[%emt 0:00:00]} (24... Kh8 $142 25. h4 Rg8) 25. h4 {[%emt 0:00:12]} Kh8 {[%emt 0:00:00]} 26. Kf2 {[%emt 0:01:01]} Nd7 {[%emt 0:00:00]} 27. h5 {[%emt 0:00:06]} (27. Nxc6 $6 Rc8 $18) 27... Bxh5 {[%emt 0:00:00]} (27... Ne5 $142) 28. gxh5 {[%emt 0:00:12]} Rxh5 {[%emt 0:00:00]} 29. Rh1 {[%emt 0:00:01]} Rxh1 {[%emt 0:00:00]} 30. Rxh1 {[%emt 0:00:01]} Ne5 {[%emt 0:00:00]} 31. Nxe5 {[%emt 0:00:11]} fxe5 {[%emt 0:00:00]} 32. Nf5 {[%emt 0:00:12]} ({Don't do} 32. Nxc6 $6 Rc8 $18) 32... Bc5+ {[%emt 0:00:00]} 33. Ke2 {[%emt 0:00:05]} Rg8 {[%emt 0:00:00]} 34. Kf3 {[%emt 0:00:03] Inhibits Rg2.} Rg6 {[%emt 0:00:00]} 35. Bb3 {[%emt 0:00:03]} Kg8 {[%emt 0:00:00]} 36. Rd1 {[%emt 0:00:18]} h5 {[%emt 0:00:00]} 37. Rd8+ {[%emt 0:00:02]} Kh7 {[%emt 0:00:03]} 38. Rd7 {[%emt 0:00:01]} Rg1 {[%emt 0:00:13]} 39. Rxf7+ {[%emt 0:00:30]} Kh8 {[%emt 0:00:02]} (39... Kg6 $142 40. Ne7+ Kh6 41. Rf6+ (41. Nxc6 h4 $18) (41. Nf5+ Kg5 $18) 41... Kg7) 40. Rf6 {[%emt 0:00:09][%cal Rf6h6]} Rf1+ {[%emt 0:00:21]} 41. Kg3 {[%emt 0:00:16]} Be3 {[%emt 0:00:09] Repels Rh6+} 42. Rxc6 {[%emt 0:00:15]} Bf4+ {[%emt 0:00:06]} 43. Kg2 {[%emt 0:00:22]} Re1 {[%emt 0:00:08]} 44. Kf3 {[%emt 0:00:19]} Rf1+ {[%emt 0:00:10]} 45. Ke2 {[%emt 0:00:01]} Rh1 {[%emt 0:00:03]} 46. Rc7 {[%emt 0:00:21]} a5 {[%emt 0:00:06]} 47. Ne7 {[%emt 0:00:01]} Rg1 {[%emt 0:00:05] Prevents Ng6+} 48. Nf5 $2 {[%emt 0:00:07]} (48. Be6 $18 Rg3 49. Kf2) 48... a4 $2 {[%emt 0:00:00][%mdl 8192]} (48... Rh1 $11 49. Bf7 Rh2+ 50. Kf1 Bg5) 49. Bf7 {[%emt 0:00:02] White is clearly winning.} Rg2+ {[%emt 0:00:02]} 50. Kf3 {[%emt 0:00:01]} Rd2 {[%emt 0:00:05]} 51. Bxh5 {[%emt 0:00:03] Black must now prevent Bg6.} Rd8 {[%emt 0:00:03]} 52. Ne7 {[%emt 0:00:03]} Kg7 {[%emt 0:00:03]} 53. Nc6+ {[%emt 0:00:01] Weighted Error Value: White=0.15 (very precise) /Black=0.29 (precise) .  Loses game:     	---       	Black=1      Mistake:       	---       	Black=6      Inaccurate:     	White=1     	Black=2      OK:         	White=13    	Black=8      Best:        	White=3     	Black=3      Strong:       	---       	Black=1} 1-0

[Event "Polish University-ch Open 2024"]
[Site "Lublin"]
[Date "2024.02.24"]
[Round "8.9"]
[White "Posluszny, Tomasz"]
[Black "Snihur, Piotr"]
[Result "1/2-1/2"]
[ECO "E11"]
[WhiteElo "2001"]
[BlackElo "2278"]
[Annotator "RC"]
[PlyCount "79"]
[EventDate "2024.02.22"]
[EventType "swiss"]
[EventCountry "POL"]
[SourceTitle "playchess.com"]
[Source "ChessBase"]
[SourceQuality "1"]
[TimeControl "600+3"]

1. d4 {[%emt 0:00:01]} Nf6 {[%emt 0:00:02]} 2. Nf3 {[%emt 0:00:02]} e6 {[%emt 0:00:04]} 3. c4 {[%emt 0:00:09]} Bb4+ {[%emt 0:00:09]} 4. Nbd2 {[%emt 0:00:06]} O-O {[%emt 0:00:07]} 5. e3 {[%emt 0:00:08]} d6 {[%emt 0:00:30]} 6. a3 {[%emt 0:00:07]} Bxd2+ {[%emt 0:00:04]} 7. Qxd2 {[%emt 0:00:01]} Qe7 {[%emt 0:00:29]} 8. Qc2 {[%emt 0:00:25]} a5 {[%emt 0:00:11]} 9. b3 {[%emt 0:00:52]} e5 {[%emt 0:00:16]} 10. Be2 {[%emt 0:00:18]} Bg4 {[%emt 0:00:17]} 11. h3 {[%emt 0:01:12]} Bh5 {[%emt 0:00:04]} 12. Bb2 {[%emt 0:00:42]} Nbd7 {[%emt 0:00:12]} 13. Nd2 {[%emt 0:01:03]} Bxe2 {[%emt 0:01:38]} 14. Kxe2 {[%emt 0:00:01]} Ne8 {[%emt 0:01:05]} 15. Rac1 {[%emt 0:00:36]} f5 {[%emt 0:00:21]} 16. dxe5 {[%emt 0:00:02]} dxe5 {[%emt 0:00:11]} 17. c5 {[%emt 0:00:09]} Kh8 {[%emt 0:00:34]} 18. c6 {[%emt 0:00:21]} bxc6 {[%emt 0:00:04]} 19. Qxc6 {[%emt 0:00:02]} Rb8 {[%emt 0:01:00]} 20. Rhd1 {[%emt 0:00:16]} Rb6 {[%emt 0:00:26]} 21. Qd5 {[%emt 0:00:31]} Rg6 {[%emt 0:01:07]} 22. Nc4 {[%emt 0:01:41]} Nef6 {[%emt 0:00:46]} 23. Qc6 {[%emt 0:00:12]} f4 {[%emt 0:00:15]} 24. Rg1 {[%emt 0:01:46]} Ng4 {[%emt 0:00:40]} 25. Qd5 {[%emt 0:00:23]} c6 {[%emt 0:00:15]} 26. Qd3 {[%emt 0:00:11]} Nxf2 {[%emt 0:00:20]} 27. Kxf2 {[%emt 0:00:01]} fxe3+ {[%emt 0:00:01]} 28. Ke1 {[%emt 0:00:00]} Qh4+ {[%emt 0:00:06]} 29. Kd1 {[%emt 0:00:01]} Qf2 {[%emt 0:00:05]} 30. Qxe3 {[%emt 0:00:04]} Qf7 {[%emt 0:00:08]} 31. Re1 {[%emt 0:00:02]} Nf6 {[%emt 0:00:03]} 32. Nxe5 {[%emt 0:00:03]} Qd5+ {[%emt 0:00:04]} 33. Qd3 {[%emt 0:00:05]} Qxd3+ {[%emt 0:00:03]} 34. Nxd3 {[%emt 0:00:01]} Rxg2 {[%emt 0:00:00]} 35. Rc2 {[%emt 0:00:05]} Rg3 {[%emt 0:00:02]} 36. Rd2 {[%emt 0:00:02]} Rxh3 {[%emt 0:00:04]} 37. Kc2 {[%emt 0:00:03]} Nd5 {[%emt 0:00:01]} 38. Ne5 {[%emt 0:00:04]} Kg8 {[%emt 0:00:06]} 39. Kb1 {[%emt 0:00:06]} Rxb3 {[%emt 0:00:01]} 40. Rd3 {[%emt 0:00:00]} 1/2-1/2

[Event "Polish University-ch Open 2024"]
[Site "Lublin"]
[Date "2024.02.24"]
[Round "8.10"]
[White "Dzida, Kamil"]
[Black "Lis, Mateusz"]
[Result "1-0"]
[ECO "B42"]
[WhiteElo "2403"]
[BlackElo "2019"]
[Annotator "TA"]
[PlyCount "95"]
[EventDate "2024.02.22"]
[EventType "swiss"]
[EventCountry "POL"]
[SourceTitle "playchess.com"]
[Source "ChessBase"]
[SourceQuality "1"]
[TimeControl "600+3"]

{[%evp 14,95,24,13,23,34,4,0,-16,-22,25,6,27,-33,15,-21,-40,-63,0,11,28,-56,-53,-49,-65,-51,-32,-56,0,0,25,17,102,90,142,133,139,130,156,182,185,185,172,185,174,170,344,344,377,390,390,377,472,356,389,269,291,155,393,391,391,322,393,391,393,371,429,416,474,424,504,494,534,526,485,461,562,489,1295,1293,29956,11237,29973,29969]} 1. e4 {[%emt 0:00:02]} c5 {[%emt 0:00:02]} 2. Nf3 {[%emt 0:00:02]} e6 {[%emt 0:00:01]} 3. d4 {[%emt 0:00:03]} cxd4 {[%emt 0:00:01]} 4. Nxd4 {[%emt 0:00:02]} a6 {[%emt 0:00:01]} 5. Bd3 {[%emt 0:00:02]} Nf6 {[%emt 0:00:12]} 6. O-O {[%emt 0:00:03]} d6 {[%emt 0:00:02]} 7. f4 {[%emt 0:00:03]} Nbd7 {[%emt 0:00:29]} 8. Kh1 {[%emt 0:00:02]} g6 {[%emt 0:00:04]} 9. Nc3 {[%emt 0:00:42]} Bg7 {[%emt 0:00:05]} 10. Qe2 {[%emt 0:00:47] [#] aiming for e5.} O-O {[%emt 0:00:04] The position is equal.} 11. Bd2 {[%emt 0:00:29]} e5 {[%emt 0:03:30]} (11... Nc5 $142) 12. Nf3 {[%emt 0:00:13]} b5 {[%emt 0:01:13]} 13. a3 {[%emt 0:00:36]} (13. fxe5 $11 dxe5 14. b4) 13... Re8 {[%emt 0:00:55]} (13... exf4 $15 14. Bxf4 Qc7) 14. Rae1 {[%emt 0:00:20]} Nc5 {[%emt 0:00:50]} 15. Qf2 {[%emt 0:01:00]} Nxd3 {[%emt 0:01:38]} ({Better is} 15... Bb7 $15) 16. cxd3 $11 {[%emt 0:00:03]} Bb7 {[%emt 0:00:34]} 17. Qh4 {[%emt 0:00:02]} (17. f5 $11) 17... Nh5 $15 {[%emt 0:00:13] White must now prevent ...Qxh4.} 18. f5 {[%emt 0:02:27]} Qxh4 {[%emt 0:00:12]} 19. Nxh4 {[%emt 0:00:02][%cal Bf3h4,Bh4g2,Bg2e3][%mdl 32]} Bf6 {[%emt 0:00:13]} 20. g3 {[%emt 0:00:48]} Rad8 {[%emt 0:00:03]} (20... Bxh4 $15 21. gxh4 f6) 21. Ng2 $11 {[%emt 0:00:04]} Bg7 {[%emt 0:00:21]} 22. Bg5 {[%emt 0:00:58]} f6 {[%emt 0:00:07]} (22... Rd7 $1 $11) 23. Bc1 {[%emt 0:00:04]} g5 {[%emt 0:00:03]} (23... d5 $142) 24. Ne3 $16 {[%emt 0:00:06]} Bf8 {[%emt 0:00:05]} 25. Bd2 {[%emt 0:00:09]} Ng7 {[%emt 0:00:03]} 26. Ncd5 {[%emt 0:00:07]} Kf7 {[%emt 0:00:03]} 27. Rc1 $36 {[%emt 0:00:10][%mdl 2048] Keeping Black busy.} Rc8 {[%emt 0:00:01]} 28. Nb6 {[%emt 0:00:13] A dynamic duo of knights.} Rxc1 {[%emt 0:00:15]} 29. Rxc1 {[%emt 0:00:01] Hoping for Ned5.} ({Don't do} 29. Bxc1 $6 Be7 $14) 29... Re7 $2 {[%emt 0:00:02]} (29... Rb8 30. Rc7+ Kg8) 30. Ned5 $18 {[%emt 0:00:09]} Bxd5 31. Nxd5 {[%emt 0:00:02]} Rb7 {[%emt 0:00:02]} 32. Rc6 {[%emt 0:00:07]} Ra7 {[%emt 0:00:03]} 33. Ba5 {[%emt 0:00:11]} Ne8 {[%emt 0:00:03]} 34. Nb4 {[%emt 0:00:40]} g4 {[%emt 0:00:06]} 35. Rxa6 {[%emt 0:00:04]} ({Much less strong is} 35. Nxa6 $6 h5 36. Kg2 Be7 $18) (35. Nd5 $18) 35... Rb7 $2 {[%emt 0:00:01] Loses the game.} (35... Rxa6 $16 {is a better defense.} 36. Nxa6 Bh6) 36. Rc6 {[%emt 0:00:06]} Bh6 {[%emt 0:00:03]} 37. Nd5 {[%emt 0:00:03]} Bg5 {[%emt 0:00:05]} 38. Bb4 {[%emt 0:00:04]} Rd7 {[%emt 0:00:03]} 39. Kg2 {[%emt 0:00:07]} Rd8 {[%emt 0:00:01]} 40. Kf1 {[%emt 0:00:09]} h5 {[%emt 0:00:01][%cal Bh7h5,Bh5h4][%mdl 32]} 41. Ke2 {[%emt 0:00:02]} h4 {[%emt 0:00:00]} 42. Bd2 {[%emt 0:00:16]} Bxd2 {[%emt 0:00:03]} 43. Kxd2 {[%emt 0:00:01]} hxg3 {[%emt 0:00:00]} 44. hxg3 {[%emt 0:00:01] KRN-KRN} Rd7 {[%emt 0:00:04]} 45. Ke3 {[%emt 0:00:05]} Kf8 {[%emt 0:00:02]} (45... Rb7 $142 46. Rc8 (46. d4 Rb8 $18) 46... Ng7) 46. Rc8 {[%emt 0:00:03]} Kf7 {[#]} 47. Rxe8 $1 {[%mdl 512] Threatening mate with Rh8.} Kxe8 {[%emt 0:00:02]} (47... Ra7 48. Re6) 48. Nxf6+ {[%emt 0:00:03] Weighted Error Value: White=0.26 (precise) /Black=0.63.  Loses game:     	---       	Black=1      Mistake:       	White=3     	Black=8      Inaccurate:     	White=2     	Black=1      OK:         	White=12    	Black=9      Best:        	White=1     	Black=2} 1-0

[Event "Polish University-ch Open 2024"]
[Site "Lublin"]
[Date "2024.02.24"]
[Round "8.11"]
[White "Pytel, Maciej"]
[Black "Brzezinski, Mateusz"]
[Result "0-1"]
[ECO "B20"]
[WhiteElo "1965"]
[BlackElo "2176"]
[Annotator "RC"]
[PlyCount "68"]
[EventDate "2024.02.22"]
[EventType "swiss"]
[EventCountry "POL"]
[SourceTitle "playchess.com"]
[Source "ChessBase"]
[SourceQuality "1"]
[TimeControl "600+3"]

1. f4 {[%emt 0:10:06]} Nf6 2. Nf3 {[%emt 0:00:00]} g6 {[%emt 0:00:08]} 3. g3 {[%emt 0:00:00]} Bg7 {[%emt 0:00:02]} 4. Bg2 {[%emt 0:00:00]} O-O {[%emt 0:00:02]} 5. O-O {[%emt 0:00:00]} d6 {[%emt 0:00:06]} 6. d3 {[%emt 0:00:00]} c5 {[%emt 0:00:12]} 7. e4 {[%emt 0:00:00]} Nc6 {[%emt 0:00:01]} 8. c3 {[%emt 0:00:00]} Rb8 {[%emt 0:00:02]} 9. Qe1 {[%emt 0:00:00]} b5 {[%emt 0:01:13]} 10. h3 {[%emt 0:00:00]} b4 {[%emt 0:00:09]} 11. d4 {[%emt 0:00:00]} bxc3 {[%emt 0:00:20]} 12. bxc3 {[%emt 0:00:00]} cxd4 {[%emt 0:00:02]} 13. cxd4 {[%emt 0:00:00]} Nb4 {[%emt 0:02:26]} 14. Na3 {[%emt 0:00:00]} Ba6 {[%emt 0:00:07]} 15. Bd2 {[%emt 0:00:00]} Bxf1 {[%emt 0:00:57]} 16. Bxf1 {[%emt 0:00:00]} a5 {[%emt 0:00:01]} 17. e5 {[%emt 0:00:00]} dxe5 {[%emt 0:00:31]} 18. fxe5 {[%emt 0:00:00]} Nfd5 {[%emt 0:00:04]} 19. Qe4 {[%emt 0:00:00]} Qd7 {[%emt 0:00:58]} 20. Nc4 {[%emt 0:00:00]} Rfc8 {[%emt 0:01:23]} 21. a3 {[%emt 0:00:00]} Nc6 {[%emt 0:00:09]} 22. Re1 {[%emt 0:00:00]} a4 {[%emt 0:00:29]} 23. Ng5 {[%emt 0:00:00]} Nd8 {[%emt 0:00:19]} 24. Ne3 {[%emt 0:00:08]} Nxe3 {[%emt 0:00:13]} 25. Bxe3 {[%emt 0:00:07]} e6 {[%emt 0:00:23]} 26. Bd2 {[%emt 0:00:18]} h6 {[%emt 0:00:09]} 27. Nf3 {[%emt 0:00:07]} Qd5 {[%emt 0:00:05]} 28. Qe2 {[%emt 0:00:15]} Rb3 {[%emt 0:00:02]} 29. Bg2 {[%emt 0:00:01]} Nc6 {[%emt 0:00:28]} 30. Rc1 {[%emt 0:00:11]} Rd8 {[%emt 0:00:10]} 31. Kh1 {[%emt 0:00:16]} Nxd4 {[%emt 0:00:08]} 32. Nxd4 {[%emt 0:00:02]} Qxd4 {[%emt 0:00:01]} 33. Ba5 {[%emt 0:00:05]} Rdb8 {[%emt 0:00:08]} 34. Rd1 {[%emt 0:00:04]} Rb1 {[%emt 0:00:02]} 0-1